Name,Sub Group,Service Area's,Expense Type,Narrative,Date,Transaction Number,Amount,Supplier Name,Supplier Ref,Period,Year,
Allerdale Borough Council,15550,Supplies & Services,Festivals & Events,General-Service Related Fees,09/10/2019,437654,83.93,AMAZON PAYMENTS UK LTD,A02682,7,2019,
Allerdale Borough Council,10114,Employee Costs,"Revenues, Benefits & Recovery Paygroup",Agency to Cover Established Post,02/10/2019,437655,413.92,ADECCO RECRUITMENT,A00188,7,2019,
Allerdale Borough Council,15501,Supplies & Services,Housing,Consultants Fees,02/10/2019,437656,539.00,HESKETH ECOLOGY,A01999,7,2019,
Allerdale Borough Council,10114,Employee Costs,"Revenues, Benefits & Recovery Paygroup",Agency to Cover Established Post,02/10/2019,437657,461.68,ADECCO RECRUITMENT,A00188,7,2019,
Allerdale Borough Council,26000,Earmarked Reserves,Licensing Service,Budget-Expd funded from Reserve,02/10/2019,437658,628.84,ADECCO RECRUITMENT,A00188,7,2019,
Allerdale Borough Council,10401,Employee Costs,Waste Contract  Operational Costs,Agency Staff Costs,02/10/2019,437659,533.32,ADECCO RECRUITMENT,A00188,7,2019,
Allerdale Borough Council,10114,Employee Costs,"Revenues, Benefits & Recovery Paygroup",Agency to Cover Established Post,02/10/2019,437660,318.40,ADECCO RECRUITMENT,A00188,7,2019,
Allerdale Borough Council,26000,Earmarked Reserves,Licensing Service,Budget-Expd funded from Reserve,02/10/2019,437661,509.44,ADECCO RECRUITMENT,A00188,7,2019,
Allerdale Borough Council,10401,Employee Costs,Waste Contract  Operational Costs,Agency Staff Costs,02/10/2019,437662,589.04,ADECCO RECRUITMENT,A00188,7,2019,
Allerdale Borough Council,16303,Supplies & Services,Mayoral Services,Contribution to Other Organisations,02/10/2019,437663,50.00,Redacted information - included personal information ,M01717,7,2019,
Allerdale Borough Council,16303,Supplies & Services,Mayoral Services,Contribution to Other Organisations,02/10/2019,437664,50.00,ST MICHAELS SCHOOL FUND,M01718,7,2019,
Allerdale Borough Council,15508,Supplies & Services,Environmental Protection,Subscriptions,02/10/2019,437665,1800.00,R H ENVIRONMENTAL LTD,A01718,7,2019,
Allerdale Borough Council,15508,Supplies & Services,Food Safety & Occupational Health,Subscriptions,02/10/2019,437666,150.00,R H ENVIRONMENTAL LTD,A01718,7,2019,
Allerdale Borough Council,15101,Supplies & Services,Off-street - Owned,Equipment Costs,02/10/2019,437667,163.50,METRIC GROUP LTD,A00568,7,2019,
Allerdale Borough Council,14202,Transport,Benefits,Hire Car and petrol,02/10/2019,437668,28.98,ENTERPRISE RENT A CAR,A01367,7,2019,
Allerdale Borough Council,14202,Transport,Chief Executive,Hire Car and petrol,02/10/2019,437669,121.34,ENTERPRISE RENT A CAR,A01367,7,2019,
Allerdale Borough Council,15301,Supplies & Services,Community Services Pay Group,Uniforms,16/10/2019,437670,106.70,ARCO LIMITED ,A00045,7,2019,
Allerdale Borough Council,10401,Employee Costs,Customer Services Pay Group,Agency Staff Costs,02/10/2019,437671,597.00,ADECCO RECRUITMENT,A00188,7,2019,
Allerdale Borough Council,15302,Supplies & Services,Public Convenience Cleaning,Protective Clothing,23/10/2019,437672,32.85,ARCO LIMITED,A00045,7,2019,
Allerdale Borough Council,15302,Supplies & Services,Public Convenience Cleaning,Protective Clothing,23/10/2019,437673,75.41,ARCO LIMITED,A00045,7,2019,
Allerdale Borough Council,15302,Supplies & Services,Public Convenience Cleaning,Protective Clothing,23/10/2019,437674,24.62,ARCO LIMITED,A00045,7,2019,
Allerdale Borough Council,15302,Supplies & Services,Public Convenience Cleaning,Protective Clothing,30/10/2019,437675,57.75,KELTIC,A00017,7,2019,
Allerdale Borough Council,14202,Transport,Benefits,Hire Car and petrol,02/10/2019,437676,44.73,ENTERPRISE RENT A CAR,A01367,7,2019,
Allerdale Borough Council,14202,Transport,Benefits,Hire Car and petrol,02/10/2019,437677,-44.73,ENTERPRISE RENT A CAR,A01367,7,2019,
Allerdale Borough Council,12402,Premises,Tenanted Properties,Electricity,02/10/2019,437678,23.70,EON ,X00016,7,2019,
Allerdale Borough Council,15704,Supplies & Services,IT Services,Mobile Phones,02/10/2019,437679,46.00,VODAFONE,A00551,7,2019,
Allerdale Borough Council,15702,Supplies & Services,IT Services,Line Rentals,02/10/2019,437680,271.93,BRITISH TELECOMMUNICATIONS,X00004,7,2019,
Allerdale Borough Council,12402,Premises,Homelessness,Electricity,02/10/2019,437681,8.84,OPUS ENERGY,X00226,7,2019,
Allerdale Borough Council,12402,Premises,Homelessness,Electricity,02/10/2019,437682,21.26,OPUS ENERGY,X00226,7,2019,
Allerdale Borough Council,16350,Supplies & Services,Festivals & Events,Miscellaneous Expenses,02/10/2019,437683,90.83,ALLERDALE BOROUGH COUNCIL,X00034,7,2019,
Allerdale Borough Council,21150,Transfer Payments,Festivals & Events,General Grants,02/10/2019,437684,250.00,Redacted information - included personal information ,M01719,7,2019,
Allerdale Borough Council,21150,Transfer Payments,Festivals & Events,General Grants,02/10/2019,437685,250.00,Redacted information - included personal information ,M01720,7,2019,
Allerdale Borough Council,21150,Transfer Payments,Festivals & Events,General Grants,02/10/2019,437686,250.00,L A COCKERMOUTH LTD,M01721,7,2019,
Allerdale Borough Council,21150,Transfer Payments,AIP investment returns,General Grants,02/10/2019,437687,900.00,Redacted information - included personal information ,M01722,7,2019,
Allerdale Borough Council,21150,Transfer Payments,Maryport Promenade,General Grants,02/10/2019,437688,900.00,Redacted information - included personal information ,M01723,7,2019,
Allerdale Borough Council,21150,Transfer Payments,Maryport Promenade,General Grants,02/10/2019,437689,1800.00,THE BALMORAL HOTEL LTD,M01724,7,2019,
Allerdale Borough Council,21150,Transfer Payments,Corporate Priorities,General Grants,02/10/2019,437690,594.22,OWL BLUE,M00925,7,2019,
Allerdale Borough Council,21150,Transfer Payments,Festivals & Events,General Grants,02/10/2019,437691,925.00,KESWICK VICTORIAN FAYRE,M00620,7,2019,
Allerdale Borough Council,54105,Capital Expenditure,Disabled Facilities Grants,Grants  Private Individuals (Capital),02/10/2019,437692,4610.00,HANDICARE ACCESSIBILITY LTD,X00211,7,2019,
Allerdale Borough Council,54105,Capital Expenditure,Discretionary Grants,Grants  Private Individuals (Capital),02/10/2019,437693,6743.84,K BAILIFF & SON LIMITED,X00116,7,2019,
Allerdale Borough Council,54105,Capital Expenditure,Discretionary Grants,Grants  Private Individuals (Capital),02/10/2019,437694,3256.16,K BAILIFF & SON LIMITED,X00116,7,2019,
Allerdale Borough Council,54105,Capital Expenditure,Disabled Facilities Grants,Grants  Private Individuals (Capital),02/10/2019,437695,5887.67,L.E.A. BUILDING SERVICES LTD,X00264,7,2019,
Allerdale Borough Council,54105,Capital Expenditure,Disabled Facilities Grants,Grants  Private Individuals (Capital),02/10/2019,437696,3238.70,PARTNERSHIP IN PROPERTY MANAGEMENT LTD,X00120,7,2019,
Allerdale Borough Council,54105,Capital Expenditure,Disabled Facilities Grants,Grants  Private Individuals (Capital),02/10/2019,437697,11900.00,DOLPHIN STAIRLIFTS CUMBRIA,X00107,7,2019,
Allerdale Borough Council,54105,Capital Expenditure,Disabled Facilities Grants,Grants  Private Individuals (Capital),02/10/2019,437698,714.00,HOME GROUP LTD,M01586,7,2019,
Allerdale Borough Council,15101,Supplies & Services,Off-street - Owned,Equipment Costs,02/10/2019,437699,4644.00,METRIC GROUP LTD,A00568,7,2019,
Allerdale Borough Council,20150,Third Party Payments,Festivals & Events,General Partnership Service Fees,02/10/2019,437700,10.53,AMAZON PAYMENTS UK LTD,A02682,7,2019,
Allerdale Borough Council,20150,Third Party Payments,Festivals & Events,General Partnership Service Fees,02/10/2019,437701,35.59,AMAZON PAYMENTS UK LTD,A02682,7,2019,
Allerdale Borough Council,15550,Supplies & Services,Festivals & Events,General-Service Related Fees,16/10/2019,437702,14.94,AMAZON PAYMENTS UK LTD,A02682,7,2019,
Allerdale Borough Council,15103,Supplies & Services,Environmental Protection,Purchase of Materials,16/10/2019,437703,19.04,ARCO LIMITED,A00045,7,2019,
Allerdale Borough Council,15550,Supplies & Services,Festivals & Events,General-Service Related Fees,16/10/2019,437704,14.94,AMAZON PAYMENTS UK LTD,A02682,7,2019,
Allerdale Borough Council,16100,Supplies & Services,Communications and Marketing,Budget-Advertising and Promotions,02/10/2019,437705,160.00,EWANRIGG LOCAL TRUST,R00024,7,2019,
Allerdale Borough Council,15550,Supplies & Services,Festivals & Events,General-Service Related Fees,23/10/2019,437706,14.94,AMAZON PAYMENTS UK LTD,A02682,7,2019,
Allerdale Borough Council,15602,Supplies & Services,Environmental Protection,Business Reply Licences,02/10/2019,437707,15.10,ROYAL MAIL LETTERS,X00021,7,2019,
Allerdale Borough Council,15602,Supplies & Services,Food Safety & Occupational Health,Business Reply Licences,02/10/2019,437708,15.40,ROYAL MAIL LETTERS,X00021,7,2019,
Allerdale Borough Council,15601,Supplies & Services,Corporate Postage and Stationary,Postage,02/10/2019,437709,34.88,ROYAL MAIL LETTERS,X00021,7,2019,
Allerdale Borough Council,15811,Supplies & Services,IT Services,Software Maintenance,31/10/2019,437710,763.90,BARCLAYCARD COMMERCIAL ,X00207,7,2019,
Allerdale Borough Council,10601,Employee Costs,Training,External Courses & Seminar Fees,,437711,550.00,BARCLAYCARD COMMERCIAL,X00207,7,2019,
Allerdale Borough Council,21150,Transfer Payments,Maryport Promenade,General Grants,09/10/2019,437712,810.00,Redacted information - included personal information ,M01725,7,2019,
Allerdale Borough Council,15203,Supplies & Services,Solway Coast AONB Core Funding,Catering Costs and Consumables,09/10/2019,437713,113.93,ALLERDALE BOROUGH COUNCIL - AONB,X00216,7,2019,
Allerdale Borough Council,15502,Supplies & Services,Legal Services,Land Registry Fees,23/10/2019,437714,42.00,HM LAND REGISTRY,A00505,7,2019,
Allerdale Borough Council,15502,Supplies & Services,Legal Services,Land Registry Fees,23/10/2019,437715,60.00,HM LAND REGISTRY,A00505,7,2019,
Allerdale Borough Council,15502,Supplies & Services,Legal Services,Land Registry Fees,23/10/2019,437716,63.00,HM LAND REGISTRY,A00505,7,2019,
Allerdale Borough Council,20150,Third Party Payments,Managed Car Parks,General Partnership Service Fees,09/10/2019,437717,23306.95,KESWICK MINISTRIES,A02390,7,2019,
Allerdale Borough Council,20150,Third Party Payments,Managed Car Parks,General Partnership Service Fees,09/10/2019,437718,10884.30,MARYPORT HARBOUR & MARINA LIMITED (PREV MARYPORT DEVELOP),A00186,7,2019,
Allerdale Borough Council,15501,Supplies & Services,Waste Contract  Operational Costs,Consultants Fees,09/10/2019,437719,28321.90,BEVAN BRITTAN LLP,A02181,7,2019,
Allerdale Borough Council,15516,Supplies & Services,Insurances,Insurance Services,09/10/2019,437720,6600.00,JELF INSURANCE BROKERS LTD,A02549,7,2019,
Allerdale Borough Council,12101,Premises,Coastal Protection and Inland Flooding,External Maintenance & Decoration,23/10/2019,437721,93.75,TIVOLI GROUP LTD,A02568,7,2019,
Allerdale Borough Council,20300,Third Party Payments,Parks and Grounds Maintenance,Budget-Contract Services,23/10/2019,437722,121375.19,TIVOLI GROUP LTD,A02568,7,2019,
Allerdale Borough Council,15403,Supplies & Services,Chief Executive,Publications and Periodicals,09/10/2019,437723,12.80,P & D NEWSAGENTS,A00237,7,2019,
Allerdale Borough Council,15601,Supplies & Services,Electoral Registration,Postage,09/10/2019,437724,270.76,ADARE SEC LIMITED,A02306,7,2019,
Allerdale Borough Council,15405,Supplies & Services,Electoral Registration,Use of External Printers,09/10/2019,437725,268.64,ADARE SEC LIMITED,A02306,7,2019,
Allerdale Borough Council,15405,Supplies & Services,Electoral Registration,Use of External Printers,09/10/2019,437726,354.85,ADARE SEC LIMITED,A02306,7,2019,
Allerdale Borough Council,16101,Supplies & Services,Planning and Development,Statutory Notices,16/10/2019,437727,1072.80,NEWSQUEST MEDIA GROUP,A02348,7,2019,
Allerdale Borough Council,16101,Supplies & Services,Planning and Development,Statutory Notices,16/10/2019,437728,346.50,NEWSQUEST MEDIA GROUP,A02348,7,2019,
Allerdale Borough Council,15601,Supplies & Services,Electoral Registration,Postage,09/10/2019,437729,610.80,ADARE SEC LIMITED,A02306,7,2019,
Allerdale Borough Council,16300,Supplies & Services,Festivals & Events,Budget-Miscellaneous,09/10/2019,437730,265.00,TROUT HOTEL,A02692,7,2019,
Allerdale Borough Council,15508,Supplies & Services,Solway Coast AONB Core Funding,Subscriptions,09/10/2019,437731,260.00,CUMBRIA TOURISM,A00477,7,2019,
Allerdale Borough Council,26000,Earmarked Reserves,Museums,Budget-Expd funded from Reserve,09/10/2019,437732,900.00,ARTLINK TRANSPORT & STORAGE LTD,A02362,7,2019,
Allerdale Borough Council,26000,Earmarked Reserves,Museums,Budget-Expd funded from Reserve,09/10/2019,437733,5100.00,ARTLINK TRANSPORT & STORAGE LTD,A02362,7,2019,
Allerdale Borough Council,72104,Holding and Control Accounts,Debtor Control Account,Debtors (Control Account),09/10/2019,437734,885.36,J W S SURVEYORS LIMITED,M01726,7,2019,
Allerdale Borough Council,15403,Supplies & Services,Communications and Marketing,Publications and Periodicals,09/10/2019,437735,109.60,P & D NEWSAGENTS,A00237,7,2019,
Allerdale Borough Council,10401,Employee Costs,Customer Services Pay Group,Agency Staff Costs,09/10/2019,437736,597.00,ADECCO RECRUITMENT,A00188,7,2019,
Allerdale Borough Council,10401,Employee Costs,Customer Services Pay Group,Agency Staff Costs,09/10/2019,437737,589.04,ADECCO RECRUITMENT,A00188,7,2019,
Allerdale Borough Council,15500,Supplies & Services,Electoral Registration,Budget-Services,23/10/2019,437738,493.20,DEMOCRACY COUNTS LTD,A02563,7,2019,
Allerdale Borough Council,15101,Supplies & Services,Public Building Cleaning,Equipment Costs,09/10/2019,437739,445.60,WF HYGIENE & CLEANING SUPPLIES,A01794,7,2019,
Allerdale Borough Council,10601,Employee Costs,Training,External Courses & Seminar Fees,09/10/2019,437740,400.00,SGL TRAINING LTD,A00355,7,2019,
Allerdale Borough Council,10401,Employee Costs,Waste Contract  Operational Costs,Agency Staff Costs,09/10/2019,437741,409.94,ADECCO RECRUITMENT,A00188,7,2019,
Allerdale Borough Council,15502,Supplies & Services,Legal Services,Land Registry Fees,31/10/2019,437743,54.00,HM LAND REGISTRY ,A00505,7,2019,
Allerdale Borough Council,33112,Income,Planning and Development,Planning Fees Income,09/10/2019,437744,206.00,PORTAL PLAN QUEST LTD,M01566,7,2019,
Allerdale Borough Council,20150,Third Party Payments,Managed Car Parks,General Partnership Service Fees,09/10/2019,437745,90944.05,E H BOOTH & CO LIMITED,A00919,7,2019,
Allerdale Borough Council,16150,Supplies & Services,Solway AONB Other Projects,General Promotions,09/10/2019,437746,1075.00,OPENSPACE (CUMBRIA) LTD,C00178,7,2019,
Allerdale Borough Council,10601,Employee Costs,Training,External Courses & Seminar Fees,23/10/2019,437747,295.00,RICARDO-AEA LTD,A01816,7,2019,
Allerdale Borough Council,20150,Third Party Payments,Festivals & Events,General Partnership Service Fees,09/10/2019,437748,1950.00,RED RESEARCH,A02688,7,2019,
Allerdale Borough Council,20150,Third Party Payments,Festivals & Events,General Partnership Service Fees,09/10/2019,437749,1293.00,ELSWORTH COMMUNICATIONS,A01869,7,2019,
Allerdale Borough Council,20150,Third Party Payments,Festivals & Events,General Partnership Service Fees,23/10/2019,437750,590.00,GCS MEDICAL LTD,A02574,7,2019,
Allerdale Borough Council,10114,Employee Costs,"Revenues, Benefits & Recovery Paygroup",Agency to Cover Established Post,09/10/2019,437751,191.04,ADECCO RECRUITMENT,A00188,7,2019,
Allerdale Borough Council,20150,Third Party Payments,Festivals & Events,General Partnership Service Fees,23/10/2019,437752,8726.00,CITY B GROUP,A02694,7,2019,
Allerdale Borough Council,10202,Employee Costs,Human Resources Pay Group,Medical Screening,09/10/2019,437753,700.00,FIT2WORK LTD,A02603,7,2019,
Allerdale Borough Council,20150,Third Party Payments,Festivals & Events,General Partnership Service Fees,09/10/2019,437754,900.00,Redacted information - included personal information ,A02686,7,2019,
Allerdale Borough Council,16001,Supplies & Services,Banking and Interest,Bank Charges and Fees,09/10/2019,437755,10.00,ALLPAY.NET LIMITED,A00714,7,2019,
Allerdale Borough Council,16001,Supplies & Services,Banking and Interest,Bank Charges and Fees,09/10/2019,437756,10.00,ALLPAY.NET LIMITED,A00714,7,2019,
Allerdale Borough Council,16001,Supplies & Services,Banking and Interest,Bank Charges and Fees,09/10/2019,437757,10.00,ALLPAY.NET LIMITED,A00714,7,2019,
Allerdale Borough Council,16001,Supplies & Services,Banking and Interest,Bank Charges and Fees,09/10/2019,437758,10.70,ALLPAY.NET LIMITED,A00714,7,2019,
Allerdale Borough Council,16001,Supplies & Services,Banking and Interest,Bank Charges and Fees,09/10/2019,437759,12.08,ALLPAY.NET LIMITED,A00714,7,2019,
Allerdale Borough Council,16001,Supplies & Services,Banking and Interest,Bank Charges and Fees,09/10/2019,437760,16.14,ALLPAY.NET LIMITED,A00714,7,2019,
Allerdale Borough Council,16001,Supplies & Services,Banking and Interest,Bank Charges and Fees,09/10/2019,437761,22.33,ALLPAY.NET LIMITED,A00714,7,2019,
Allerdale Borough Council,16001,Supplies & Services,Banking and Interest,Bank Charges and Fees,09/10/2019,437762,27.00,ALLPAY.NET LIMITED,A00714,7,2019,
Allerdale Borough Council,16001,Supplies & Services,Banking and Interest,Bank Charges and Fees,09/10/2019,437763,1216.72,ALLPAY.NET LIMITED,A00714,7,2019,
Allerdale Borough Council,16001,Supplies & Services,Banking and Interest,Bank Charges and Fees,09/10/2019,437764,43.87,ALLPAY.NET LIMITED,A00714,7,2019,
Allerdale Borough Council,15401,Supplies & Services,Corporate Postage and Stationary,General Stationery,23/10/2019,437765,183.69,LYRECO,A00043,7,2019,
Allerdale Borough Council,15401,Supplies & Services,Corporate Postage and Stationary,General Stationery,23/10/2019,437766,95.29,LYRECO,A00043,7,2019,
Allerdale Borough Council,15401,Supplies & Services,Corporate Postage and Stationary,General Stationery,23/10/2019,437767,99.04,LYRECO,A00043,7,2019,
Allerdale Borough Council,15401,Supplies & Services,Corporate Postage and Stationary,General Stationery,23/10/2019,437768,267.42,LYRECO,A00043,7,2019,
Allerdale Borough Council,14104,Transport,Public Convenience Cleaning,Repairs & Maintenance,09/10/2019,437769,71.66,GOODFELLOW & SONS,A00031,7,2019,
Allerdale Borough Council,12201,Premises,Homelessness,Internal Maintenance,09/10/2019,437770,600.00,CUMBRIA SUPERGLAZE,A00982,7,2019,
Allerdale Borough Council,15506,Supplies & Services,Reedlands Road Industrial Development,Professional Services,23/10/2019,437771,4523.68,PERFECT CIRCLE JV LTD,A02478,7,2019,
Allerdale Borough Council,20150,Third Party Payments,Festivals & Events,General Partnership Service Fees,09/10/2019,437772,7500.00,FLUID PRODUCTIONS LIMITED,A02009,7,2019,
Allerdale Borough Council,52106,Capital Expenditure,Solway coast multi-user pathway,Consultants Fees (Capital),09/10/2019,437773,7920.00,BLOOM PROCUREMENT SERVICES,A02360,7,2019,
Allerdale Borough Council,21150,Transfer Payments,Members Services,General Grants,09/10/2019,437774,3500.00,CUMBRIA ASSOCIATION OF LOCAL COUNCILS,M00302,7,2019,
Allerdale Borough Council,20150,Third Party Payments,Festivals & Events,General Partnership Service Fees,09/10/2019,437775,500.00,Redacted information - included personal information ,A02702,7,2019,
Allerdale Borough Council,54105,Capital Expenditure,Disabled Facilities Grants,Grants  Private Individuals (Capital),03/10/2019,437776,3705.00,BLUE FLAME SERVICES LTD,X00213,7,2019,
Allerdale Borough Council,54105,Capital Expenditure,Disabled Facilities Grants,Grants  Private Individuals (Capital),09/10/2019,437777,4174.00,FEARON BUILDERS,C00069,7,2019,
Allerdale Borough Council,12201,Premises,Multi Storey Car Park Utilities & Maint,Internal Maintenance,23/10/2019,437778,300.00,TIVOLI GROUP LTD,A02568,7,2019,
Allerdale Borough Council,10114,Employee Costs,Customer Services Pay Group,Agency to Cover Established Post,09/10/2019,437779,398.00,ADECCO RECRUITMENT,A00188,7,2019,
Allerdale Borough Council,12405,Premises,Customer Services Pay Group,Rentals and Lease Charges,09/10/2019,437780,591.94,SOLWAY PLAIN FUTURES LTD,A01194,7,2019,
Allerdale Borough Council,15404,Supplies & Services,Legal Services,Reference Materials,09/10/2019,437781,401.00,SWEET & MAXWELL (THOMSON REUTERS),A00028,7,2019,
Allerdale Borough Council,10401,Employee Costs,Environmental Protection,Agency Staff Costs,23/10/2019,437782,277.60,HAYS SPECIALIST RECRUITMENT LTD,A00280,7,2019,
Allerdale Borough Council,15506,Supplies & Services,Legal Services,Professional Services,09/10/2019,437783,4278.50,BLOOM PROCUREMENT SERVICES,A02360,7,2019,
Allerdale Borough Council,12305,Premises,Corporate Property Maintenance,Inspections and Services,09/10/2019,437784,237.00,AQUAID (NORTH),A00123,7,2019,
Allerdale Borough Council,15506,Supplies & Services,Communications and Marketing,Professional Services,30/10/2019,437785,1950.00,MICHAEL CARDER LTD,A02493,7,2019,
Allerdale Borough Council,12309,Premises,Corporate Property Maintenance,Fire and Safety,09/10/2019,437786,98.95,ORIAN SOLUTIONS LTD,A01814,7,2019,
Allerdale Borough Council,20150,Third Party Payments,Festivals & Events,General Partnership Service Fees,09/10/2019,437787,250.00,MAC MUSICA LTD,A02703,7,2019,
Allerdale Borough Council,15802,Supplies & Services,ICT Infrastructure Costs,Hardware Maintenance,23/10/2019,437788,3001.28,ELITETELE.COM,A02517,7,2019,
Allerdale Borough Council,16300,Supplies & Services,Tourism Incentive,Budget-Miscellaneous,09/10/2019,437789,750.00,CUMBRIA TOURISM,A00477,7,2019,
Allerdale Borough Council,15506,Supplies & Services,Food and Occupational Health,Professional Services,23/10/2019,437790,10850.00,RAMORA GLOBAL LIMITED,A02680,7,2019,
Allerdale Borough Council,15810,Supplies & Services,IT Services,Software Licences,30/10/2019,437791,2688.00,IAM TECHNOLOGY GROUP LTD,A02699,7,2019,
Allerdale Borough Council,15506,Supplies & Services,Maryport Promenade,Professional Services,16/10/2019,437792,500.00,FSK ARCHITECTURAL SERVICES,A02661,7,2019,
Allerdale Borough Council,14105,Transport,Property Services Pay Group,"Fuel, Lubricants & Consumables",21/10/2019,437793,438.29,BP OIL UK LTD ,X00022,7,2019,
Allerdale Borough Council,20150,Third Party Payments,Museums,General Partnership Service Fees,09/10/2019,437794,7500.00,WORKINGTON HERITAGE GROUP LTD,A00339,7,2019,
Allerdale Borough Council,15101,Supplies & Services,Off-street - Owned,Equipment Costs,23/10/2019,437795,360.00,METRIC GROUP LTD,A00568,7,2019,
Allerdale Borough Council,16100,Supplies & Services,Communications and Marketing,Budget-Advertising and Promotions,09/10/2019,437796,145.00,FIRPRESS PRINTERS,A00063,7,2019,
Allerdale Borough Council,20150,Third Party Payments,Festivals & Events,General Partnership Service Fees,09/10/2019,437797,8155.00,A W BLAKE LTD,A02687,7,2019,
Allerdale Borough Council,15501,Supplies & Services,Planning Policy,Consultants Fees,30/10/2019,437798,253.00,PROGRAMME OFFICER SOLUTIONS LTD,A01852,7,2019,
Allerdale Borough Council,20150,Third Party Payments,Keswick Public Toliets,General Partnership Service Fees,09/10/2019,437799,724.00,Redacted information - included personal information ,C00008,7,2019,
Allerdale Borough Council,33117,Income,Off-street - Owned,Car Parks - Income from Machines,09/10/2019,437800,9.17,Redacted information - included personal information ,M01727,7,2019,
Allerdale Borough Council,33112,Income,Planning and Development,Planning Fees Income,09/10/2019,437801,206.00,PORTAL PLAN QUEST LTD,M01566,7,2019,
Allerdale Borough Council,15601,Supplies & Services,Electoral Registration,Postage,09/10/2019,437802,1446.79,ROYAL MAIL LETTERS,X00021,7,2019,
Allerdale Borough Council,15101,Supplies & Services,Street Naming and Numbering,Equipment Costs,23/10/2019,437803,359.50,N SIGN LTD,A00634,7,2019,
Allerdale Borough Council,15101,Supplies & Services,Street Naming and Numbering,Equipment Costs,23/10/2019,437804,-306.50,N SIGN LTD,A00634,7,2019,
Allerdale Borough Council,12402,Premises,Tenanted Properties,Electricity,09/10/2019,437805,0.78,BRITISH GAS,X00039,7,2019,
Allerdale Borough Council,15804,Supplies & Services,IT Services,Computer Data Lines B.T.,23/10/2019,437806,1050.83,VAIONI GROUP LTD,A02471,7,2019,
Allerdale Borough Council,10110,Employee Costs,Chief Executive,Salary Sacrifice,09/10/2019,437807,1780.93,TUSKERDIRECT LTD,A02186,7,2019,
Allerdale Borough Council,12403,Premises,Homelessness,Gas,09/10/2019,437808,62.02,NPOWER,X00277,7,2019,
Allerdale Borough Council,12403,Premises,Homelessness,Gas,09/10/2019,437809,72.26,NPOWER,X00277,7,2019,
Allerdale Borough Council,15101,Supplies & Services,Recycling,Equipment Costs,09/10/2019,437810,6580.00,A & C WEBER UK LIMITED,A02372,7,2019,
Allerdale Borough Council,15101,Supplies & Services,Off-street - Owned,Equipment Costs,16/10/2019,437811,120.77,RELIANCE HIGH-TECH LTD,C00123,7,2019,
Allerdale Borough Council,10401,Employee Costs,Transfer of Land Charges Data,Agency Staff Costs,09/10/2019,437812,230.84,ADECCO RECRUITMENT,A00188,7,2019,
Allerdale Borough Council,16102,Supplies & Services,Sports Development,Regeneration Initiatives,30/10/2019,437813,1400.00,DUNCAN ROSS LAND DRAINAGE LTD,C00235,7,2019,
Allerdale Borough Council,15501,Supplies & Services,Waste Contract  Operational Costs,Consultants Fees,09/10/2019,437814,31066.90,BEVAN BRITTAN LLP,A02181,7,2019,
Allerdale Borough Council,12101,Premises,Environmental Initiatives,External Maintenance & Decoration,16/10/2019,437815,1401.40,WEST CUMBRIA RIVERS TRUST,A02538,7,2019,
Allerdale Borough Council,15501,Supplies & Services,Waste Contract  Operational Costs,Consultants Fees,23/10/2019,437816,7177.94,BEVAN BRITTAN LLP,A02181,7,2019,
Allerdale Borough Council,12403,Premises,Homelessness,Gas,09/10/2019,437817,159.12,CASTLES & COASTS HOUSING ASSOCIATION LTD,A02465,7,2019,
Allerdale Borough Council,15506,Supplies & Services,Street Scene,Professional Services,09/10/2019,437818,20000.00,WHINMILL FARM CANINE CENTRE,A00117,7,2019,
Allerdale Borough Council,15101,Supplies & Services,Elections,Equipment Costs,09/10/2019,437819,213.67,NEOPOST LIMITED,A00455,7,2019,
Allerdale Borough Council,10202,Employee Costs,Human Resources Pay Group,Medical Screening,09/10/2019,437820,560.00,Redacted information - included personal information ,A02594,7,2019,
Allerdale Borough Council,14202,Transport,Building Control - Chargeable,Hire Car and petrol,09/10/2019,437821,135.16,ENTERPRISE RENT A CAR,A01367,7,2019,
Allerdale Borough Council,15501,Supplies & Services,Planning and Development,Consultants Fees,09/10/2019,437822,248.60,TREESCAPES CONSULTANCY LTD,A02385,7,2019,
Allerdale Borough Council,15501,Supplies & Services,Planning and Development,Consultants Fees,09/10/2019,437823,231.50,TREESCAPES CONSULTANCY LTD,A02385,7,2019,
Allerdale Borough Council,20150,Third Party Payments,Festivals & Events,General Partnership Service Fees,16/10/2019,437824,1000.00,NEWSQUEST MEDIA GROUP,A02348,7,2019,
Allerdale Borough Council,15550,Supplies & Services,Festivals & Events,General-Service Related Fees,23/10/2019,437825,4.98,AMAZON PAYMENTS UK LTD,A02682,7,2019,
Allerdale Borough Council,20150,Third Party Payments,Festivals & Events,General Partnership Service Fees,09/10/2019,437826,160.98,ENTERPRISE RENT A CAR,A01367,7,2019,
Allerdale Borough Council,15550,Supplies & Services,Festivals & Events,General-Service Related Fees,23/10/2019,437827,14.94,AMAZON PAYMENTS UK LTD,A02682,7,2019,
Allerdale Borough Council,15302,Supplies & Services,Public Convenience Cleaning,Protective Clothing,23/10/2019,437828,32.85,ARCO LIMITED,A00045,7,2019,
Allerdale Borough Council,12306,Premises,Public Convenience Cleaning,Legionella Inspections and Services,23/10/2019,437829,300.00,CLEARWATER TECHNOLOGY,A02153,7,2019,
Allerdale Borough Council,10601,Employee Costs,Training,External Courses & Seminar Fees,23/10/2019,437830,700.00,HOEY AINSCOUGH ASSOCIATES LTD,A01683,7,2019,
Allerdale Borough Council,15550,Supplies & Services,Festivals & Events,General-Service Related Fees,30/10/2019,437831,9.96,AMAZON PAYMENTS UK LTD,A02682,7,2019,
Allerdale Borough Council,15506,Supplies & Services,Reedlands Road Industrial Development,Professional Services,16/10/2019,437832,30063.06,KIER SERVICES MAINTENANCE EAST,C00226,7,2019,
Allerdale Borough Council,16300,Supplies & Services,Festivals & Events,Budget-Miscellaneous,09/10/2019,437833,111.66,Redacted information - included personal information ,A00221,7,2019,
Allerdale Borough Council,16350,Supplies & Services,Localities & Partnerships,Miscellaneous Expenses,23/10/2019,437834,106.50,Redacted information - included personal information ,A02265,7,2019,
Allerdale Borough Council,15403,Supplies & Services,Mayoral Services,Publications and Periodicals,09/10/2019,437835,12.80,P & D NEWSAGENTS,A00237,7,2019,
Allerdale Borough Council,26000,Earmarked Reserves,Licensing Service,Budget-Expd funded from Reserve,09/10/2019,437836,636.80,ADECCO RECRUITMENT,A00188,7,2019,
Allerdale Borough Council,15501,Supplies & Services,Maryport Regeneration,Consultants Fees,09/10/2019,437837,9000.00,VENTURE XTREME CONSULTANCY LTD,A02691,7,2019,
Allerdale Borough Council,15506,Supplies & Services,Food and Occupational Health,Professional Services,09/10/2019,437838,48.00,MILLCROFT VETERINARY GROUP,A00211,7,2019,
Allerdale Borough Council,20150,Third Party Payments,Festivals & Events,General Partnership Service Fees,09/10/2019,437839,985.00,POD (NORTH WEST) LIMITED,A01977,7,2019,
Allerdale Borough Council,10110,Employee Costs,Busy Bees Childcare Scheme,Salary Sacrifice,16/10/2019,437840,108.08,COMPUTERSHARE VOUCHER SERVICES,A00991,7,2019,
Allerdale Borough Council,10110,Employee Costs,Busy Bees Childcare Scheme,Salary Sacrifice,16/10/2019,437841,1965.00,COMPUTERSHARE VOUCHER SERVICES,A00991,7,2019,
Allerdale Borough Council,15804,Supplies & Services,IT Services,Computer Data Lines B.T.,23/10/2019,437842,870.63,VODAFONE (PREV CABLE & WIRELESS),A00934,7,2019,
Allerdale Borough Council,15203,Supplies & Services,Members Services,Catering Costs and Consumables,30/10/2019,437843,80.40,KENT AND SUSSEX VENDING,A02127,7,2019,
Allerdale Borough Council,21150,Transfer Payments,Maryport Promenade,General Grants,09/10/2019,437844,900.00,Redacted information - included personal information ,M01728,7,2019,
Allerdale Borough Council,21150,Transfer Payments,Maryport Promenade,General Grants,09/10/2019,437845,450.00,Redacted information - included personal information ,M01729,7,2019,
Allerdale Borough Council,16303,Supplies & Services,Community Safety - Funded,Contribution to Other Organisations,09/10/2019,437846,3000.00,WHITEHAVEN YOUTH HARBOUR PROJECT,M01730,7,2019,
Allerdale Borough Council,72104,Holding and Control Accounts,Debtor Control Account,Debtors (Control Account),09/10/2019,437847,222.48,Redacted information - included personal information ,M01731,7,2019,
Allerdale Borough Council,10204,Employee Costs,Allerdale Options,Staff Reward Payments,09/10/2019,437848,234.46,ALLERDALE BOROUGH COUNCIL,X00034,7,2019,
Allerdale Borough Council,10204,Employee Costs,Allerdale Options,Staff Reward Payments,31/10/2019,437849,1488.12,BARCLAYCARD COMMERCIAL ,X00207,7,2019,
Allerdale Borough Council,12405,Premises,Homelessness,Rentals and Lease Charges,16/10/2019,437850,1241.21,HOME GROUP LTD,A00423,7,2019,
Allerdale Borough Council,16301,Supplies & Services,Localities & Partnerships,Reimbursement,30/10/2019,437851,557.00,CENTRE FOR PUBLIC SCRUTINY,A00203,7,2019,
Allerdale Borough Council,10500,Employee Costs,Corporate Recruitment,Budget-Recruitment Expenses,30/10/2019,437852,498.00,PREPARED MEDIA LTD,A02707,7,2019,
Allerdale Borough Council,15506,Supplies & Services,Maryport Regeneration,Professional Services,09/10/2019,437853,1868.83,PORTAL PLAN QUEST LTD,M01566,7,2019,
Allerdale Borough Council,54105,Capital Expenditure,Disabled Facilities Grants,Grants  Private Individuals (Capital),09/10/2019,437854,3227.66,PARTNERSHIP IN PROPERTY MANAGEMENT LTD,X00120,7,2019,
Allerdale Borough Council,54105,Capital Expenditure,Disabled Facilities Grants,Grants  Private Individuals (Capital),09/10/2019,437855,3262.18,PARTNERSHIP IN PROPERTY MANAGEMENT LTD,X00120,7,2019,
Allerdale Borough Council,54105,Capital Expenditure,Disabled Facilities Grants,Grants  Private Individuals (Capital),09/10/2019,437856,6523.58,PARTNERSHIP IN PROPERTY MANAGEMENT LTD,X00120,7,2019,
Allerdale Borough Council,54105,Capital Expenditure,Disabled Facilities Grants,Grants  Private Individuals (Capital),09/10/2019,437857,3454.14,L.E.A. BUILDING SERVICES LTD,X00264,7,2019,
Allerdale Borough Council,54105,Capital Expenditure,Disabled Facilities Grants,Grants  Private Individuals (Capital),09/10/2019,437858,4075.00,DOLPHIN STAIRLIFTS CUMBRIA,X00107,7,2019,
Allerdale Borough Council,20150,Third Party Payments,Helena Thompson Development,General Partnership Service Fees,09/10/2019,437859,650.00,INSPECTAS COMPLIANCE LTD,C00236,7,2019,
Allerdale Borough Council,12409,Premises,Tenanted Properties,Buildings and Contents Insurance,09/10/2019,437860,751.00,CASTLES & COASTS HOUSING ASSOCIATION LTD,A02465,7,2019,
Allerdale Borough Council,15904,Supplies & Services,Legal Services,Training,16/10/2019,437861,215.00,LLG LEGAL TRAINING,A00689,7,2019,
Allerdale Borough Council,15550,Supplies & Services,Arts Development,General-Service Related Fees,16/10/2019,437862,270.00,KESWICK MUSEUM & ART GALLERY,A00337,7,2019,
Allerdale Borough Council,16150,Supplies & Services,Remembering the Solway,General Promotions,,437863,363.48,BARCLAYCARD COMMERCIAL,X00207,7,2019,
Allerdale Borough Council,14150,Transport,Gates Travel,General-Council Vehicles (Non-Capital),23/10/2019,437864,3990.20,GATES TRAVEL,A01525,7,2019,
Allerdale Borough Council,16302,Supplies & Services,Members Services,Room Hire,16/10/2019,437865,125.00,SOLWAY PLAIN FUTURES LTD,A01194,7,2019,
Allerdale Borough Council,20150,Third Party Payments,Footway Lighting Scheme,General Partnership Service Fees,30/10/2019,437866,926.00,ELECTRICITY NORTH WEST LTD,A00471,7,2019,
Allerdale Borough Council,10601,Employee Costs,Training,External Courses & Seminar Fees,16/10/2019,437867,269.16,HUNDAY MANOR HOTEL,A00278,7,2019,
Allerdale Borough Council,15503,Supplies & Services,Revenue,Court and Tribunal Costs,16/10/2019,437868,118.50,HMCTS,A00275,7,2019,
Allerdale Borough Council,10114,Employee Costs,"Revenues, Benefits & Recovery Paygroup",Agency to Cover Established Post,16/10/2019,437869,318.40,ADECCO RECRUITMENT,A00188,7,2019,
Allerdale Borough Council,15803,Supplies & Services,IT Services,Hardware Purchase,30/10/2019,437870,9500.00,INSIGHT DIRECT (UK) LTD,A00054,7,2019,
Allerdale Borough Council,15201,Supplies & Services,Localities & Partnerships,Entertainment Of Visitors,16/10/2019,437871,353.92,THE GOLF HOTEL,A00749,7,2019,
Allerdale Borough Council,26000,Earmarked Reserves,Legal advice re GDPR,Budget-Expd funded from Reserve,30/10/2019,437872,1384.00,CANFORD AUDIO LIMITED,A00570,7,2019,
Allerdale Borough Council,12202,Premises,Multi Storey Car Park Utilities & Maint,Electrical Repairs and Service,16/10/2019,437873,131.50,JJ GROUP (CONTRACTING) LTD,C00038,7,2019,
Allerdale Borough Council,12309,Premises,Corporate Property Maintenance,Fire and Safety,16/10/2019,437874,1384.70,JJ GROUP (CONTRACTING) LTD,C00038,7,2019,
Allerdale Borough Council,20100,Third Party Payments,Community Safety - Funded,Budget-Partnership Services,16/10/2019,437875,97.50,EDEN DISTRICT COUNCIL,A00790,7,2019,
Allerdale Borough Council,20150,Third Party Payments,Footway Lighting Scheme,General Partnership Service Fees,30/10/2019,437876,926.00,ELECTRICITY NORTH WEST LTD,A00471,7,2019,
Allerdale Borough Council,12303,Premises,Corporate Property Maintenance,Window Cleaning,16/10/2019,437877,385.00,BORDERBRITE LTD,C00155,7,2019,
Allerdale Borough Council,10114,Employee Costs,Customer Services Pay Group,Agency to Cover Established Post,16/10/2019,437878,286.56,ADECCO RECRUITMENT,A00188,7,2019,
Allerdale Borough Council,12101,Premises,Harrington Harbour,External Maintenance & Decoration,16/10/2019,437879,100.00,IAN WILSON HAULAGE LIMITED,A01278,7,2019,
Allerdale Borough Council,12101,Premises,Harrington Harbour,External Maintenance & Decoration,16/10/2019,437880,675.00,IAN WILSON HAULAGE LIMITED,A01278,7,2019,
Allerdale Borough Council,14202,Transport,Solway Coast AONB Core Funding,Hire Car and petrol,16/10/2019,437881,62.32,ENTERPRISE RENT A CAR,A01367,7,2019,
Allerdale Borough Council,12401,Premises,Corporate Property Maintenance,Energy Management Charges,16/10/2019,437882,2114.00,SCHNEIDER ELECTRIC LTD,A00859,7,2019,
Allerdale Borough Council,15904,Supplies & Services,Members Services,Training,16/10/2019,437883,300.00,CARLISLE CITY COUNCIL,A00161,7,2019,
Allerdale Borough Council,10401,Employee Costs,Environmental Protection,Agency Staff Costs,16/10/2019,437886,1331.25,G2 RECRUITMENT SOLUTIONS LTD,C00198,7,2019,
Allerdale Borough Council,12405,Premises,Customer Services Pay Group,Rentals and Lease Charges,16/10/2019,437887,1500.00,COCKERMOUTH TOWN COUNCIL,A00586,7,2019,
Allerdale Borough Council,15500,Supplies & Services,Elections,Budget-Services,30/10/2019,437888,285.00,ASSOCIATION OF ELECTORAL ADMIN,A00189,7,2019,
Allerdale Borough Council,15506,Supplies & Services,Assistance - Housing Services,Professional Services,16/10/2019,437889,5592.63,Redacted information - included personal information ,A00066,7,2019,
Allerdale Borough Council,10401,Employee Costs,Environmental Protection,Agency Staff Costs,,437890,277.60,HAYS SPECIALIST RECRUITMENT LTD,A00280,7,2019,
Allerdale Borough Council,16302,Supplies & Services,Planning and Development,Room Hire,16/10/2019,437891,200.00,GREENWICH LEISURE LTD,A00136,7,2019,
Allerdale Borough Council,15702,Supplies & Services,Street Cleansing,Line Rentals,16/10/2019,437892,56.01,BRITISH TELECOMMUNICATIONS,X00004,7,2019,
Allerdale Borough Council,12408,Premises,Corporate Property Maintenance,Water & Sewage,16/10/2019,437893,279.24,SCOTTISH WATER BUSINESS STREAM LTD,X00271,7,2019,
Allerdale Borough Council,12408,Premises,Corporate Property Maintenance,Water & Sewage,16/10/2019,437894,35.15,SCOTTISH WATER BUSINESS STREAM LTD,X00271,7,2019,
Allerdale Borough Council,12408,Premises,Public Convenience Cleaning,Water & Sewage,16/10/2019,437895,549.91,SCOTTISH WATER BUSINESS STREAM LTD,X00271,7,2019,
Allerdale Borough Council,12408,Premises,Corporate Property Maintenance,Water & Sewage,16/10/2019,437896,4.78,SCOTTISH WATER BUSINESS STREAM LTD,X00271,7,2019,
Allerdale Borough Council,12408,Premises,Public Convenience Cleaning,Water & Sewage,16/10/2019,437897,104.62,SCOTTISH WATER BUSINESS STREAM LTD,X00271,7,2019,
Allerdale Borough Council,12408,Premises,Public Convenience Cleaning,Water & Sewage,16/10/2019,437898,84.60,SCOTTISH WATER BUSINESS STREAM LTD,X00271,7,2019,
Allerdale Borough Council,12408,Premises,Corporate Property Maintenance,Water & Sewage,16/10/2019,437899,10.76,SCOTTISH WATER BUSINESS STREAM LTD,X00271,7,2019,
Allerdale Borough Council,12408,Premises,Corporate Property Maintenance,Water & Sewage,16/10/2019,437900,336.36,SCOTTISH WATER BUSINESS STREAM LTD,X00271,7,2019,
Allerdale Borough Council,12408,Premises,Corporate Property Maintenance,Water & Sewage,16/10/2019,437901,4.64,SCOTTISH WATER BUSINESS STREAM LTD,X00271,7,2019,
Allerdale Borough Council,12408,Premises,Corporate Property Maintenance,Water & Sewage,16/10/2019,437902,0.44,SCOTTISH WATER BUSINESS STREAM LTD,X00271,7,2019,
Allerdale Borough Council,12408,Premises,Corporate Property Maintenance,Water & Sewage,16/10/2019,437903,141.73,SCOTTISH WATER BUSINESS STREAM LTD,X00271,7,2019,
Allerdale Borough Council,12408,Premises,Corporate Property Maintenance,Water & Sewage,16/10/2019,437904,-219.41,SCOTTISH WATER BUSINESS STREAM LTD,X00271,7,2019,
Allerdale Borough Council,12408,Premises,Corporate Property Maintenance,Water & Sewage,16/10/2019,437905,0.39,SCOTTISH WATER BUSINESS STREAM LTD,X00271,7,2019,
Allerdale Borough Council,12408,Premises,Corporate Property Maintenance,Water & Sewage,16/10/2019,437906,0.39,SCOTTISH WATER BUSINESS STREAM LTD,X00271,7,2019,
Allerdale Borough Council,12408,Premises,Corporate Property Maintenance,Water & Sewage,16/10/2019,437907,42.68,SCOTTISH WATER BUSINESS STREAM LTD,X00271,7,2019,
Allerdale Borough Council,12408,Premises,Multi Storey Car Park Utilities & Maint,Water & Sewage,16/10/2019,437908,450.22,SCOTTISH WATER BUSINESS STREAM LTD,X00271,7,2019,
Allerdale Borough Council,12408,Premises,Corporate Property Maintenance,Water & Sewage,16/10/2019,437909,70.98,SCOTTISH WATER BUSINESS STREAM LTD,X00271,7,2019,
Allerdale Borough Council,12408,Premises,Corporate Property Maintenance,Water & Sewage,16/10/2019,437910,33.09,SCOTTISH WATER BUSINESS STREAM LTD,X00271,7,2019,
Allerdale Borough Council,12408,Premises,Corporate Property Maintenance,Water & Sewage,16/10/2019,437911,156.83,SCOTTISH WATER BUSINESS STREAM LTD,X00271,7,2019,
Allerdale Borough Council,12408,Premises,Corporate Property Maintenance,Water & Sewage,16/10/2019,437912,5.08,SCOTTISH WATER BUSINESS STREAM LTD,X00271,7,2019,
Allerdale Borough Council,12408,Premises,Public Convenience Cleaning,Water & Sewage,16/10/2019,437913,178.99,SCOTTISH WATER BUSINESS STREAM LTD,X00271,7,2019,
Allerdale Borough Council,12408,Premises,Public Convenience Cleaning,Water & Sewage,16/10/2019,437914,291.99,SCOTTISH WATER BUSINESS STREAM LTD,X00271,7,2019,
Allerdale Borough Council,12408,Premises,Corporate Property Maintenance,Water & Sewage,16/10/2019,437915,444.81,SCOTTISH WATER BUSINESS STREAM LTD,X00271,7,2019,
Allerdale Borough Council,12408,Premises,Public Convenience Cleaning,Water & Sewage,16/10/2019,437916,77.43,SCOTTISH WATER BUSINESS STREAM LTD,X00271,7,2019,
Allerdale Borough Council,12408,Premises,Public Convenience Cleaning,Water & Sewage,16/10/2019,437917,83.82,SCOTTISH WATER BUSINESS STREAM LTD,X00271,7,2019,
Allerdale Borough Council,12408,Premises,Public Convenience Cleaning,Water & Sewage,16/10/2019,437918,163.18,SCOTTISH WATER BUSINESS STREAM LTD,X00271,7,2019,
Allerdale Borough Council,12408,Premises,Corporate Property Maintenance,Water & Sewage,16/10/2019,437919,409.79,SCOTTISH WATER BUSINESS STREAM LTD,X00271,7,2019,
Allerdale Borough Council,12408,Premises,Corporate Property Maintenance,Water & Sewage,16/10/2019,437920,114.60,SCOTTISH WATER BUSINESS STREAM LTD,X00271,7,2019,
Allerdale Borough Council,12402,Premises,Car Parks Inspection & Maintenance,Electricity,16/10/2019,437921,95.24,N POWER ,X00015,7,2019,
Allerdale Borough Council,15704,Supplies & Services,IT Services,Mobile Phones,30/10/2019,437922,21.00,EE LIMITED,X00290,7,2019,
Allerdale Borough Council,12402,Premises,Corporate Property Maintenance,Electricity,16/10/2019,437923,545.82,N POWER,X00015,7,2019,
Allerdale Borough Council,15703,Supplies & Services,IT Services,Call Charges,16/10/2019,437924,797.11,BRITISH TELECOMMUNICATIONS,X00004,7,2019,
Allerdale Borough Council,12401,Premises,Corporate Property Maintenance,Energy Management Charges,16/10/2019,437925,350.00,COMMERCIAL SURVEY REPORTS LTD ,A02365,7,2019,
Allerdale Borough Council,15813,Supplies & Services,Waste Contract,Software Miscellaneous,16/10/2019,437926,10400.00,FCC ENVIRONMENT SERVICES (FOCSA),A00085,7,2019,
Allerdale Borough Council,15506,Supplies & Services,Food and Occupational Health,Professional Services,16/10/2019,437927,235.00,BOLLARD PROOF LTD,C00229,7,2019,
Allerdale Borough Council,12405,Premises,Homelessness,Rentals and Lease Charges,16/10/2019,437928,6061.61,CASTLES & COASTS HOUSING ASSOCIATION LTD,A02465,7,2019,
Allerdale Borough Council,21150,Transfer Payments,Cumbria CBL Partnership,General Grants,16/10/2019,437929,1500.00,SOUTH LAKELAND DISTRICT COUNCIL,A00569,7,2019,
Allerdale Borough Council,10401,Employee Costs,Waste Contract  Operational Costs,Agency Staff Costs,16/10/2019,437930,589.04,ADECCO RECRUITMENT,A00188,7,2019,
Allerdale Borough Council,15402,Supplies & Services,Multi-functional Printers,Photocopier Charges,30/10/2019,437931,1623.78,KONICA MINOLTA BUSINESS SOLUTIONS UK LTD,A01556,7,2019,
Allerdale Borough Council,15402,Supplies & Services,Multi-functional Printers,Photocopier Charges,30/10/2019,437932,9.90,KONICA MINOLTA BUSINESS SOLUTIONS UK LTD,A01556,7,2019,
Allerdale Borough Council,20302,Third Party Payments,Street Cleansing,Contract Services-Street Cleansing,16/10/2019,437933,788.00,CUMBRIA WASTE MANAGEMENT LTD,A01304,7,2019,
Allerdale Borough Council,15510,Supplies & Services,Street Cleansing,Disposal of Waste,30/10/2019,437934,37.00,DUNDAS CHEMICAL CO (MOSSPARK),A00175,7,2019,
Allerdale Borough Council,15101,Supplies & Services,Recycling,Equipment Costs,16/10/2019,437935,811.00,J DUFFY LTD,A01846,7,2019,
Allerdale Borough Council,15302,Supplies & Services,Food Safety & Occupational Health,Protective Clothing,16/10/2019,437936,22.08,ARCO LIMITED ,A00045,7,2019,
Allerdale Borough Council,15302,Supplies & Services,Food Safety & Occupational Health,Protective Clothing,16/10/2019,437937,56.11,ARCO LIMITED,A00045,7,2019,
Allerdale Borough Council,15101,Supplies & Services,Off-street - Owned,Equipment Costs,16/10/2019,437938,10.24,AMAZON PAYMENTS UK LTD,A02682,7,2019,
Allerdale Borough Council,15401,Supplies & Services,Corporate Postage and Stationary,General Stationery,23/10/2019,437939,159.29,LYRECO,A00043,7,2019,
Allerdale Borough Council,20150,Third Party Payments,Festivals & Events,General Partnership Service Fees,23/10/2019,437940,2874.45,NEWSQUEST MEDIA GROUP,A02348,7,2019,
Allerdale Borough Council,16301,Supplies & Services,Sports Development,Reimbursement,16/10/2019,437941,6094.38,GREENWICH LEISURE LTD,A00136,7,2019,
Allerdale Borough Council,10601,Employee Costs,Licensing Service,External Courses & Seminar Fees,16/10/2019,437942,160.00,INSTITUTE OF LICENSING (EVENTS) LTD,A00315,7,2019,
Allerdale Borough Council,10601,Employee Costs,Licensing Service,External Courses & Seminar Fees,16/10/2019,437943,160.00,INSTITUTE OF LICENSING (EVENTS) LTD,A00315,7,2019,
Allerdale Borough Council,10401,Employee Costs,Customer Services Pay Group,Agency Staff Costs,16/10/2019,437944,230.84,ADECCO RECRUITMENT,A00188,7,2019,
Allerdale Borough Council,10401,Employee Costs,Customer Services Pay Group,Agency Staff Costs,16/10/2019,437945,533.32,ADECCO RECRUITMENT,A00188,7,2019,
Allerdale Borough Council,15803,Supplies & Services,IT Services,Hardware Purchase,30/10/2019,437946,338.00,INSIGHT DIRECT (UK) LTD,A00054,7,2019,
Allerdale Borough Council,15803,Supplies & Services,IT Services,Hardware Purchase,30/10/2019,437947,128.00,INSIGHT DIRECT (UK) LTD,A00054,7,2019,
Allerdale Borough Council,20150,Third Party Payments,Festivals & Events,General Partnership Service Fees,16/10/2019,437948,900.00,LOCK OUT 32 LTD,A02709,7,2019,
Allerdale Borough Council,54105,Capital Expenditure,Disabled Facilities Grants,Grants  Private Individuals (Capital),16/10/2019,437949,3099.66,PARTNERSHIP IN PROPERTY MANAGEMENT LTD,X00120,7,2019,
Allerdale Borough Council,54105,Capital Expenditure,Disabled Facilities Grants,Grants  Private Individuals (Capital),16/10/2019,437950,4098.29,PARTNERSHIP IN PROPERTY MANAGEMENT LTD,X00120,7,2019,
Allerdale Borough Council,54105,Capital Expenditure,Disabled Facilities Grants,Grants  Private Individuals (Capital),16/10/2019,437951,5868.00,PARTNERSHIP IN PROPERTY MANAGEMENT LTD,X00120,7,2019,
Allerdale Borough Council,54105,Capital Expenditure,Disabled Facilities Grants,Grants  Private Individuals (Capital),16/10/2019,437952,3469.67,PARTNERSHIP IN PROPERTY MANAGEMENT LTD,X00120,7,2019,
Allerdale Borough Council,54105,Capital Expenditure,Disabled Facilities Grants,Grants  Private Individuals (Capital),16/10/2019,437953,4259.83,PARTNERSHIP IN PROPERTY MANAGEMENT LTD,X00120,7,2019,
Allerdale Borough Council,54105,Capital Expenditure,Disabled Facilities Grants,Grants  Private Individuals (Capital),16/10/2019,437954,56.00,PARTNERSHIP IN PROPERTY MANAGEMENT LTD,X00120,7,2019,
Allerdale Borough Council,54105,Capital Expenditure,Disabled Facilities Grants,Grants  Private Individuals (Capital),16/10/2019,437955,439.50,PARTNERSHIP IN PROPERTY MANAGEMENT LTD,X00120,7,2019,
Allerdale Borough Council,54105,Capital Expenditure,Disabled Facilities Grants,Grants  Private Individuals (Capital),16/10/2019,437956,4570.99,L.E.A. BUILDING SERVICES LTD,X00264,7,2019,
Allerdale Borough Council,54105,Capital Expenditure,Healthy Homes,Grants  Private Individuals (Capital),16/10/2019,437957,9500.00,Redacted information - included personal information ,X00301,7,2019,
Allerdale Borough Council,20150,Third Party Payments,Festivals & Events,General Partnership Service Fees,16/10/2019,437958,80.00,Redacted information - included personal information ,A02395,7,2019,
Allerdale Borough Council,20150,Third Party Payments,Festivals & Events,General Partnership Service Fees,16/10/2019,437959,850.00,Redacted information - included personal information ,A02700,7,2019,
Allerdale Borough Council,14104,Transport,Property Services Pay Group,Repairs & Maintenance,16/10/2019,437960,843.22,MICHELDEVER TYRE SERVICES T/A P&R AUTOCENTRE,A02368,7,2019,
Allerdale Borough Council,15301,Supplies & Services,Off-street - Owned,Uniforms,16/10/2019,437961,48.53,ARCO LIMITED,A00045,7,2019,
Allerdale Borough Council,15302,Supplies & Services,Public Convenience Cleaning,Protective Clothing,16/10/2019,437962,60.46,ARCO LIMITED,A00045,7,2019,
Allerdale Borough Council,12408,Premises,Public Convenience Cleaning,Water & Sewage,16/10/2019,437963,1325.62,SCOTTISH WATER BUSINESS STREAM LTD,X00271,7,2019,
Allerdale Borough Council,12408,Premises,Corporate Property Maintenance,Water & Sewage,16/10/2019,437964,1455.10,SCOTTISH WATER BUSINESS STREAM LTD,X00271,7,2019,
Allerdale Borough Council,12402,Premises,Footways,Electricity,16/10/2019,437965,6177.91,N POWER ,X00015,7,2019,
Allerdale Borough Council,15302,Supplies & Services,Public Convenience Cleaning,Protective Clothing,16/10/2019,437966,-60.46,ARCO LIMITED,A00045,7,2019,
Allerdale Borough Council,12402,Premises,Multi Storey Car Park Utilities & Maint,Electricity,16/10/2019,437967,1636.86,N POWER ,X00015,7,2019,
Allerdale Borough Council,12402,Premises,Corporate Property Maintenance,Electricity,16/10/2019,437968,1542.90,N POWER ,X00015,7,2019,
Allerdale Borough Council,12402,Premises,Corporate Property Maintenance,Electricity,16/10/2019,437969,2919.01,N POWER ,X00015,7,2019,
Allerdale Borough Council,16350,Supplies & Services,Homelessness,Miscellaneous Expenses,16/10/2019,437970,380.00,BR PROPERTIES MANAGEMENT,M00239,7,2019,
Allerdale Borough Council,10401,Employee Costs,Transfer of Land Charges Data,Agency Staff Costs,16/10/2019,437971,589.04,ADECCO RECRUITMENT,A00188,7,2019,
Allerdale Borough Council,26000,Earmarked Reserves,Licensing Service,Budget-Expd funded from Reserve,16/10/2019,437972,636.80,ADECCO RECRUITMENT,A00188,7,2019,
Allerdale Borough Council,12102,Premises,Tenanted Properties,Demolition,23/10/2019,437973,200.00,ASHCROFT DEMOLITION (CUMBRIA) LTD,C00197,7,2019,
Allerdale Borough Council,15405,Supplies & Services,Electoral Registration,Use of External Printers,23/10/2019,437974,300.00,ADARE SEC LIMITED,A02306,7,2019,
Allerdale Borough Council,12201,Premises,Multi Storey Car Park Utilities & Maint,Internal Maintenance,23/10/2019,437975,928.00,Redacted information - included personal information ,C00008,7,2019,
Allerdale Borough Council,12202,Premises,Corporate Property Maintenance,Electrical Repairs and Service,23/10/2019,437976,139.50,JJ GROUP (CONTRACTING) LTD,C00038,7,2019,
Allerdale Borough Council,16350,Supplies & Services,Programme Director for Maryport Regenera,Miscellaneous Expenses,31/10/2019,437977,48.47,BARCLAYCARD COMMERCIAL,X00207,7,2019,
Allerdale Borough Council,16350,Supplies & Services,Homelessness,Miscellaneous Expenses,23/10/2019,437978,300.00,Redacted information - included personal information ,M01732,7,2019,
Allerdale Borough Council,33117,Income,Off-street - Owned,Car Parks - Income from Machines,23/10/2019,437979,9.17,Redacted information - included personal information ,M01733,7,2019,
Allerdale Borough Council,33117,Income,Off-street - Owned,Car Parks - Income from Machines,23/10/2019,437980,4.58,Redacted information - included personal information ,M01734,7,2019,
Allerdale Borough Council,15601,Supplies & Services,Electoral Registration,Postage,23/10/2019,437981,6047.43,ADARE SEC LIMITED,A02306,7,2019,
Allerdale Borough Council,15405,Supplies & Services,Electoral Registration,Use of External Printers,23/10/2019,437982,187.20,ADARE SEC LIMITED,A02306,7,2019,
Allerdale Borough Council,15405,Supplies & Services,Electoral Registration,Use of External Printers,23/10/2019,437983,1533.12,ADARE SEC LIMITED,A02306,7,2019,
Allerdale Borough Council,15405,Supplies & Services,Elections,Use of External Printers,23/10/2019,437984,1375.00,ADARE SEC LIMITED,A02306,7,2019,
Allerdale Borough Council,20300,Third Party Payments,Maryport Wave,Budget-Contract Services,23/10/2019,437985,15798.75,GREENWICH LEISURE LTD (PREV CARLISLE LEISURE),A00136,7,2019,
Allerdale Borough Council,20305,Third Party Payments,Sports & Leisure Centres,Contract Services-Leisure Centres,23/10/2019,437986,52274.75,GREENWICH LEISURE LTD (PREV CARLISLE LEISURE),A00136,7,2019,
Allerdale Borough Council,10601,Employee Costs,Training,External Courses & Seminar Fees,23/10/2019,437987,500.00,Redacted information - included personal information ,A02623,7,2019,
Allerdale Borough Council,15601,Supplies & Services,Corporate Postage and Stationary,Postage,23/10/2019,437988,504.38,UK MAIL GROUP PLC,A02371,7,2019,
Allerdale Borough Council,15601,Supplies & Services,Corporate Postage and Stationary,Postage,23/10/2019,437989,522.20,UK MAIL GROUP PLC,A02371,7,2019,
Allerdale Borough Council,15810,Supplies & Services,ICT Infrastructure Costs,Software Licences,,437990,3360.00,ALTIATECH LTD,A02567,7,2019,
Allerdale Borough Council,16300,Supplies & Services,Tourism Incentive,Budget-Miscellaneous,23/10/2019,437991,1395.00,ECLECTIC CREATIVE LIMITED,A02179,7,2019,
Allerdale Borough Council,16300,Supplies & Services,Tourism Incentive,Budget-Miscellaneous,23/10/2019,437992,1380.00,ECLECTIC CREATIVE LIMITED,A02179,7,2019,
Allerdale Borough Council,12305,Premises,Multi Storey Car Park Utilities & Maint,Inspections and Services,23/10/2019,437993,410.40,SOLWAY INDUSTRIAL DOORS LTD,C00015,7,2019,
Allerdale Borough Council,15402,Supplies & Services,Multi-functional Printers,Photocopier Charges,,437994,103.17,KONICA MINOLTA BUSINESS SOLUTIONS UK LTD,A01556,7,2019,
Allerdale Borough Council,15402,Supplies & Services,Multi-functional Printers,Photocopier Charges,,437995,1605.69,KONICA MINOLTA BUSINESS SOLUTIONS UK LTD,A01556,7,2019,
Allerdale Borough Council,15505,Supplies & Services,Planning and Development,Licences,23/10/2019,437996,6.17,CENTREMAPS,A00512,7,2019,
Allerdale Borough Council,15811,Supplies & Services,IT Services,Software Maintenance,16/10/2019,437997,332.00,SAGE (UK) LTD ,A01911,7,2019,
Allerdale Borough Council,20100,Third Party Payments,Emergency Planning,Budget-Partnership Services,23/10/2019,437998,18828.00,CUMBRIA CC,A00066,7,2019,
Allerdale Borough Council,54105,Capital Expenditure,Disabled Facilities Grants,Grants  Private Individuals (Capital),23/10/2019,437999,8830.58,L.E.A. BUILDING SERVICES LTD,X00264,7,2019,
Allerdale Borough Council,54105,Capital Expenditure,Disabled Facilities Grants,Grants  Private Individuals (Capital),23/10/2019,438000,714.00,HOME GROUP LTD,M01586,7,2019,
Allerdale Borough Council,21101,Transfer Payments,Assistance - Housing Services,Private Individuals,23/10/2019,438001,2246.16,RICHMOND FELLOWSHIP,X00300,7,2019,
Allerdale Borough Council,16350,Supplies & Services,Homelessness,Miscellaneous Expenses,23/10/2019,438002,350.00,HOME GROUP LTD,M01028,7,2019,
Allerdale Borough Council,10114,Employee Costs,"Revenues, Benefits & Recovery Paygroup",Agency to Cover Established Post,23/10/2019,438003,318.40,ADECCO RECRUITMENT,A00188,7,2019,
Allerdale Borough Council,10114,Employee Costs,Customer Services Pay Group,Agency to Cover Established Post,23/10/2019,438004,358.20,ADECCO RECRUITMENT,A00188,7,2019,
Allerdale Borough Council,33112,Income,Planning and Development,Planning Fees Income,23/10/2019,438005,206.00,Redacted information - included personal information ,M01735,7,2019,
Allerdale Borough Council,15506,Supplies & Services,Environmental Protection,Professional Services,23/10/2019,438006,1958.33,UNITED UTILITIES PLC,A01657,7,2019,
Allerdale Borough Council,16300,Supplies & Services,Tourism Incentive,Budget-Miscellaneous,23/10/2019,438007,38.00,FIRPRESS PRINTERS,A00063,7,2019,
Allerdale Borough Council,10601,Employee Costs,"Strategy, Policy & Performance Pay Gro",External Courses & Seminar Fees,30/10/2019,438008,49.00,NORTHERN HOUSING CONSORTIUM LIMITED,A00260,7,2019,
Allerdale Borough Council,15507,Supplies & Services,Land Charges Service,Searches,23/10/2019,438009,1165.00,LAKE DISTRICT NATIONAL PARK AUTHORITY,A00415,7,2019,
Allerdale Borough Council,10401,Employee Costs,Environmental Protection,Agency Staff Costs,,438010,277.60,HAYS SPECIALIST RECRUITMENT LTD,A00280,7,2019,
Allerdale Borough Council,15507,Supplies & Services,Land Charges Service,Searches,23/10/2019,438011,2101.00,CUMBRIA CC ,A00066,7,2019,
Allerdale Borough Council,15101,Supplies & Services,Corporate Property Maintenance,Equipment Costs,23/10/2019,438012,109.94,BOOKER CASH & CARRY ,A01419,7,2019,
Allerdale Borough Council,16101,Supplies & Services,Planning and Development,Statutory Notices,30/10/2019,438013,252.00,NEWSQUEST MEDIA GROUP,A02348,7,2019,
Allerdale Borough Council,12301,Premises,Corporate Property Maintenance,Security,23/10/2019,438014,93.00,COMPASS SERVICES GROUP,A00839,7,2019,
Allerdale Borough Council,20150,Third Party Payments,Footways,General Partnership Service Fees,,438015,2262.93,ELECTRICITY NORTH WEST LTD,A00471,7,2019,
Allerdale Borough Council,10401,Employee Costs,Environmental Protection,Agency Staff Costs,23/10/2019,438016,750.00,G2 RECRUITMENT SOLUTIONS LTD,C00198,7,2019,
Allerdale Borough Council,15100,Supplies & Services,Domestic Waste,"Budget-Equipment, Furniture & Materials",,438017,6314.00,MGB PLASTICS LTD,A01301,7,2019,
Allerdale Borough Council,20101,Third Party Payments,Public Convenience Cleaning,Cleansing Contract,23/10/2019,438018,200.00,Redacted information - included personal information ,A00209,7,2019,
Allerdale Borough Council,15405,Supplies & Services,Street Cleansing,Use of External Printers,,438019,68.75,TIVOLI GROUP LTD,A02568,7,2019,
Allerdale Borough Council,10401,Employee Costs,Environmental Protection,Agency Staff Costs,,438020,319.24,HAYS SPECIALIST RECRUITMENT LTD,A00280,7,2019,
Allerdale Borough Council,15813,Supplies & Services,Arcus,Software Miscellaneous,23/10/2019,438021,21918.00,NORTH LINCOLNSHIRE COUNCIL,A02681,7,2019,
Allerdale Borough Council,15506,Supplies & Services,Legal Services,Professional Services,23/10/2019,438022,250.60,BEVAN BRITTAN LLP,A02181,7,2019,
Allerdale Borough Council,15811,Supplies & Services,Shared Revs & Bens IT Costs,Software Maintenance,23/10/2019,438023,7687.50,CIVICA UK LIMITED,A00006,7,2019,
Allerdale Borough Council,15100,Supplies & Services,Environmental Protection,"Budget-Equipment, Furniture & Materials",30/10/2019,438024,209.93,ARGOS BUSINESS SOLUTION-STORE COLLECTION,A00411,7,2019,
Allerdale Borough Council,12101,Premises,Coastal Protection and Inland Flooding,External Maintenance & Decoration,,438025,3888.26,TIVOLI GROUP LTD,A02568,7,2019,
Allerdale Borough Council,10250,Employee Costs,Corporate Recruitment,General-Employee Related Expenses,,438026,12.60,K&R BADGES LIMITED,A01328,7,2019,
Allerdale Borough Council,10250,Employee Costs,Corporate Recruitment,General-Employee Related Expenses,,438027,25.55,K&R BADGES LIMITED,A01328,7,2019,
Allerdale Borough Council,15302,Supplies & Services,Public Convenience Cleaning,Protective Clothing,30/10/2019,438028,57.75,KELTIC,A00017,7,2019,
Allerdale Borough Council,15804,Supplies & Services,IT Services,Computer Data Lines B.T.,23/10/2019,438029,17456.08,BRITISH TELECOMMUNICATIONS,X00004,7,2019,
Allerdale Borough Council,15703,Supplies & Services,IT Services,Call Charges,30/10/2019,438030,463.51,BRITISH TELECOM PLC,A00363,7,2019,
Allerdale Borough Council,15703,Supplies & Services,IT Services,Call Charges,30/10/2019,438031,140.51,BRITISH TELECOM PLC,A00363,7,2019,
Allerdale Borough Council,12402,Premises,Homelessness,Electricity,23/10/2019,438032,18.40,OPUS ENERGY,X00226,7,2019,
Allerdale Borough Council,12402,Premises,Homelessness,Electricity,23/10/2019,438033,21.93,OPUS ENERGY,X00226,7,2019,
Allerdale Borough Council,12402,Premises,Homelessness,Electricity,23/10/2019,438034,14.45,OPUS ENERGY,X00226,7,2019,
Allerdale Borough Council,12402,Premises,Homelessness,Electricity,23/10/2019,438035,16.79,OPUS ENERGY,X00226,7,2019,
Allerdale Borough Council,12402,Premises,Homelessness,Electricity,23/10/2019,438036,18.47,OPUS ENERGY,X00226,7,2019,
Allerdale Borough Council,12402,Premises,Homelessness,Electricity,23/10/2019,438037,19.65,OPUS ENERGY,X00226,7,2019,
Allerdale Borough Council,12402,Premises,Homelessness,Electricity,23/10/2019,438038,35.27,OPUS ENERGY,X00226,7,2019,
Allerdale Borough Council,15601,Supplies & Services,Corporate Postage and Stationary,Postage,23/10/2019,438039,261.92,ROYAL MAIL LETTERS,X00021,7,2019,
Allerdale Borough Council,12403,Premises,Corporate Property Maintenance,Gas,23/10/2019,438040,277.72,CORONA ENERGY,X00003,7,2019,
Allerdale Borough Council,12403,Premises,Corporate Property Maintenance,Gas,23/10/2019,438041,105.90,CORONA ENERGY,X00003,7,2019,
Allerdale Borough Council,12403,Premises,Corporate Property Maintenance,Gas,23/10/2019,438042,183.83,CORONA ENERGY,X00003,7,2019,
Allerdale Borough Council,12403,Premises,Corporate Property Maintenance,Gas,23/10/2019,438043,124.75,CORONA ENERGY,X00003,7,2019,
Allerdale Borough Council,12403,Premises,Corporate Property Maintenance,Gas,23/10/2019,438044,44.87,CORONA ENERGY,X00003,7,2019,
Allerdale Borough Council,12403,Premises,Corporate Property Maintenance,Gas,23/10/2019,438045,203.20,CORONA ENERGY,X00003,7,2019,
Allerdale Borough Council,12403,Premises,Corporate Property Maintenance,Gas,23/10/2019,438046,157.36,CORONA ENERGY,X00003,7,2019,
Allerdale Borough Council,15302,Supplies & Services,Public Convenience Cleaning,Protective Clothing,30/10/2019,438047,-57.75,KELTIC,A00017,7,2019,
Allerdale Borough Council,21150,Transfer Payments,Maryport Promenade,General Grants,23/10/2019,438048,900.00,Redacted information - included personal information ,M01736,7,2019,
Allerdale Borough Council,21150,Transfer Payments,Maryport Promenade,General Grants,23/10/2019,438049,900.00,BEACON VETERINARY CENTRE,A00708,7,2019,
Allerdale Borough Council,21150,Transfer Payments,Maryport Promenade,General Grants,23/10/2019,438050,392.00,Redacted information - included personal information ,M01737,7,2019,
Allerdale Borough Council,21150,Transfer Payments,Maryport Promenade,General Grants,23/10/2019,438051,900.00,Redacted information - included personal information ,M01738,7,2019,
Allerdale Borough Council,33102,Income,Food and Occupational Health,Licence / Certificates / Permits Income,23/10/2019,438052,113.10,Redacted information - included personal information ,M01739,7,2019,
Allerdale Borough Council,33112,Income,Planning and Development,Planning Fees Income,23/10/2019,438053,228.00,CONISTON CONSULTANTS LTD,X00210,7,2019,
Allerdale Borough Council,10401,Employee Costs,Transfer of Land Charges Data,Agency Staff Costs,23/10/2019,438054,549.24,ADECCO RECRUITMENT,A00188,7,2019,
Allerdale Borough Council,26000,Earmarked Reserves,Licensing Service,Budget-Expd funded from Reserve,23/10/2019,438055,636.80,ADECCO RECRUITMENT,A00188,7,2019,
Allerdale Borough Council,12101,Premises,Car Parks Inspection & Maintenance,External Maintenance & Decoration,23/10/2019,438056,436.00,Redacted information - included personal information ,C00008,7,2019,
Allerdale Borough Council,12402,Premises,Multi Storey Car Park Utilities & Maint,Electricity,23/10/2019,438057,220.00,N POWER ,X00015,7,2019,
Allerdale Borough Council,14202,Transport,Building Control - Chargeable,Hire Car and petrol,23/10/2019,438058,137.46,ENTERPRISE RENT A CAR,A01367,7,2019,
Allerdale Borough Council,16300,Supplies & Services,Economic Regeneration,Budget-Miscellaneous,23/10/2019,438059,96.00,HER CITI,A00441,7,2019,
Allerdale Borough Council,15101,Supplies & Services,Public Building Cleaning,Equipment Costs,30/10/2019,438060,91.20,WF HYGIENE & CLEANING SUPPLIES,A01794,7,2019,
Allerdale Borough Council,15203,Supplies & Services,Members Services,Catering Costs and Consumables,23/10/2019,438061,49.50,AL'S KITCHEN LTD,A00187,7,2019,
Allerdale Borough Council,15203,Supplies & Services,Members Services,Catering Costs and Consumables,30/10/2019,438062,79.20,AL'S KITCHEN LTD,A00187,7,2019,
Allerdale Borough Council,12309,Premises,Corporate Property Maintenance,Fire and Safety,30/10/2019,438063,50.00,COMPASS SERVICES GROUP,A00839,7,2019,
Allerdale Borough Council,14200,Transport,Members Services,Budget-Travel,30/10/2019,438064,180.00,REAYS COACHES LTD,A01280,7,2019,
Allerdale Borough Council,15100,Supplies & Services,Museums,"Budget-Equipment, Furniture & Materials",30/10/2019,438065,890.07,THOMASON PARTNERSHIP LTD ,A02527,7,2019,
Allerdale Borough Council,15501,Supplies & Services,Planning Policy,Consultants Fees,,438066,4200.00,WYG ENVIRONMENT PLANNING TRANSPORT LTD,A01785,7,2019,
Allerdale Borough Council,12101,Premises,Corporate Property Maintenance,External Maintenance & Decoration,30/10/2019,438067,343.00,ASHCROFT DEMOLITION (CUMBRIA) LTD,C00197,7,2019,
Allerdale Borough Council,12101,Premises,Corporate Property Maintenance,External Maintenance & Decoration,30/10/2019,438068,159.00,ASHCROFT DEMOLITION (CUMBRIA) LTD,C00197,7,2019,
Allerdale Borough Council,20150,Third Party Payments,Festivals & Events,General Partnership Service Fees,30/10/2019,438069,1200.00,REAYS COACHES LTD,A01280,7,2019,
Allerdale Borough Council,12101,Premises,Corporate Property Maintenance,External Maintenance & Decoration,30/10/2019,438070,144.67,AST SIGNS LIMITED,A01473,7,2019,
Allerdale Borough Council,15301,Supplies & Services,Workington Nature Partnership,Uniforms,,438071,38.87,ARCO LIMITED ,A00045,7,2019,
Allerdale Borough Council,15301,Supplies & Services,Workington Nature Partnership,Uniforms,,438072,5.98,ARCO LIMITED,A00045,7,2019,
Allerdale Borough Council,15501,Supplies & Services,Workington Nature Partnership,Consultants Fees,30/10/2019,438073,335.20,TULLIE HOUSE MUSEUM & ART GALLERY TRUST,A01238,7,2019,
Allerdale Borough Council,15301,Supplies & Services,Workington Nature Partnership,Uniforms,,438074,113.46,ARCO LIMITED - HEAD OFFICE HULL,A00045,7,2019,
Allerdale Borough Council,15301,Supplies & Services,Community Services Pay Group,Uniforms,,438075,65.24,ARCO LIMITED - HEAD OFFICE HULL,A00045,7,2019,
Allerdale Borough Council,20304,Third Party Payments,Recycling,Contract Services-Recycling,30/10/2019,438076,234158.76,FCC ENVIRONMENT SERVICES (FOCSA),A00085,7,2019,
Allerdale Borough Council,15103,Supplies & Services,Workington Nature Partnership,Purchase of Materials,30/10/2019,438077,69.70,SUI GENERIS INTERNATIONAL LTD,C00234,7,2019,
Allerdale Borough Council,12101,Premises,Street Naming and Numbering,External Maintenance & Decoration,30/10/2019,438078,495.00,Redacted information - included personal information ,A00176,7,2019,
Allerdale Borough Council,12101,Premises,Car Parks Inspection & Maintenance,External Maintenance & Decoration,30/10/2019,438079,346.00,Redacted information - included personal information ,A00176,7,2019,
Allerdale Borough Council,12301,Premises,Corporate Property Maintenance,Security,30/10/2019,438080,95.54,COMPASS SERVICES GROUP,A00839,7,2019,
Allerdale Borough Council,15501,Supplies & Services,Maryport Regeneration,Consultants Fees,,438081,10000.00,BUTTRESS ARCHITECTS,A02704,7,2019,
Allerdale Borough Council,12402,Premises,Public Convenience Cleaning,Electricity,30/10/2019,438082,6.98,N POWER ,X00015,7,2019,
Allerdale Borough Council,12402,Premises,Public Convenience Cleaning,Electricity,30/10/2019,438083,-1.77,N POWER ,X00015,7,2019,
Allerdale Borough Council,12402,Premises,Corporate Property Maintenance,Electricity,30/10/2019,438084,98.06,N POWER ,X00015,7,2019,
Allerdale Borough Council,12402,Premises,Corporate Property Maintenance,Electricity,30/10/2019,438085,10.41,N POWER ,X00015,7,2019,
Allerdale Borough Council,12402,Premises,Corporate Property Maintenance,Electricity,30/10/2019,438086,33.26,N POWER ,X00015,7,2019,
Allerdale Borough Council,12402,Premises,Corporate Property Maintenance,Electricity,30/10/2019,438087,7.94,N POWER ,X00015,7,2019,
Allerdale Borough Council,12402,Premises,Corporate Property Maintenance,Electricity,30/10/2019,438088,167.04,N POWER ,X00015,7,2019,
Allerdale Borough Council,12402,Premises,Corporate Property Maintenance,Electricity,30/10/2019,438089,91.18,N POWER ,X00015,7,2019,
Allerdale Borough Council,12402,Premises,Corporate Property Maintenance,Electricity,30/10/2019,438090,6.98,N POWER ,X00015,7,2019,
Allerdale Borough Council,12402,Premises,Corporate Property Maintenance,Electricity,30/10/2019,438091,8.21,N POWER ,X00015,7,2019,
Allerdale Borough Council,12402,Premises,Public Convenience Cleaning,Electricity,30/10/2019,438092,13.71,N POWER ,X00015,7,2019,
Allerdale Borough Council,12402,Premises,Public Convenience Cleaning,Electricity,30/10/2019,438093,1.77,N POWER ,X00015,7,2019,
Allerdale Borough Council,12402,Premises,Public Convenience Cleaning,Electricity,30/10/2019,438094,23.63,N POWER ,X00015,7,2019,
Allerdale Borough Council,12402,Premises,Public Convenience Cleaning,Electricity,30/10/2019,438095,14.27,N POWER ,X00015,7,2019,
Allerdale Borough Council,12402,Premises,Public Convenience Cleaning,Electricity,30/10/2019,438096,83.20,N POWER ,X00015,7,2019,
Allerdale Borough Council,12402,Premises,Multi Storey Car Park Utilities & Maint,Electricity,30/10/2019,438097,9.73,N POWER ,X00015,7,2019,
Allerdale Borough Council,12402,Premises,Corporate Property Maintenance,Electricity,30/10/2019,438098,1084.57,N POWER ,X00015,7,2019,
Allerdale Borough Council,12402,Premises,Corporate Property Maintenance,Electricity,30/10/2019,438099,5.92,N POWER ,X00015,7,2019,
Allerdale Borough Council,12402,Premises,Car Parks Inspection & Maintenance,Electricity,30/10/2019,438100,11.10,N POWER ,X00015,7,2019,
Allerdale Borough Council,12402,Premises,Corporate Property Maintenance,Electricity,30/10/2019,438101,163.20,N POWER ,X00015,7,2019,
Allerdale Borough Council,12402,Premises,Public Convenience Cleaning,Electricity,30/10/2019,438102,6.98,N POWER ,X00015,7,2019,
Allerdale Borough Council,10114,Employee Costs,Customer Services Pay Group,Agency to Cover Established Post,30/10/2019,438103,143.28,ADECCO RECRUITMENT,A00188,7,2019,
Allerdale Borough Council,10114,Employee Costs,"Revenues, Benefits & Recovery Paygroup",Agency to Cover Established Post,30/10/2019,438104,318.40,ADECCO RECRUITMENT,A00188,7,2019,
Allerdale Borough Council,16150,Supplies & Services,Remembering the Solway,General Promotions,30/10/2019,438105,787.50,Redacted information - included personal information ,A02671,7,2019,
Allerdale Borough Council,12103,Premises,Environmental Initiatives,Grounds Maintenance,,438107,187.50,TIVOLI GROUP LTD,A02568,7,2019,
Allerdale Borough Council,15102,Supplies & Services,Off-street - Owned,Equipment Repair & Maintenance,30/10/2019,438108,38.44,CHIPSIDE LIMITED,A00004,7,2019,
Allerdale Borough Council,15102,Supplies & Services,Off-street - Owned,Equipment Repair & Maintenance,30/10/2019,438109,6.83,CHIPSIDE LIMITED,A00004,7,2019,
Allerdale Borough Council,10601,Employee Costs,Training,External Courses & Seminar Fees,,438110,4000.00,NORTHUMBRIA UNIVERSITY,A00491,7,2019,
Allerdale Borough Council,15508,Supplies & Services,Members Services,Subscriptions,,438111,99.00,ASSOCIATION OF DEMOCRATIC SERVICES OFFICERS LIMITED,A01129,7,2019,
Allerdale Borough Council,16350,Supplies & Services,Localities & Partnerships,Miscellaneous Expenses,30/10/2019,438112,15.00,CUMBRIA COUNCIL FOR VOLUNTARY SERVICES,A01838,7,2019,
Allerdale Borough Council,33117,Income,Off-street - Owned,Car Parks - Income from Machines,30/10/2019,438113,2.25,Redacted information - included personal information ,M01740,7,2019,
Allerdale Borough Council,16302,Supplies & Services,Grounds Maintenance Major Repairs,Room Hire,30/10/2019,438114,75.00,GREENROW PENTECOSTAL CHURCH,M00084,7,2019,
Allerdale Borough Council,16302,Supplies & Services,Elections,Room Hire,30/10/2019,438115,125.00,CALDEW HALL,M01636,7,2019,
Allerdale Borough Council,16101,Supplies & Services,Planning and Development,Statutory Notices,,438116,346.50,NEWSQUEST MEDIA GROUP,A02348,7,2019,
Allerdale Borough Council,16150,Supplies & Services,Remembering the Solway,General Promotions,30/10/2019,438117,810.00,Redacted information - included personal information ,A02671,7,2019,
Allerdale Borough Council,15405,Supplies & Services,Electoral Registration,Use of External Printers,30/10/2019,438118,731.95,ADARE SEC LIMITED,A02306,7,2019,
Allerdale Borough Council,15601,Supplies & Services,Electoral Registration,Postage,30/10/2019,438119,745.32,ADARE SEC LIMITED,A02306,7,2019,
Allerdale Borough Council,12201,Premises,Multi Storey Car Park Utilities & Maint,Internal Maintenance,,438120,300.00,TIVOLI GROUP LTD,A02568,7,2019,
Allerdale Borough Council,12103,Premises,Environmental Initiatives,Grounds Maintenance,,438121,400.00,TIVOLI GROUP LTD,A02568,7,2019,
Allerdale Borough Council,15102,Supplies & Services,Waste Contract  Operational Costs,Equipment Repair & Maintenance,,438122,19044.10,TIVOLI GROUP LTD,A02568,7,2019,
Allerdale Borough Council,15102,Supplies & Services,Waste Contract  Operational Costs,Equipment Repair & Maintenance,,438123,16693.90,TIVOLI GROUP LTD,A02568,7,2019,
Allerdale Borough Council,16003,Supplies & Services,Off-street - Owned,Security of Cash Movements,30/10/2019,438124,2460.15,G4S CASH SOLUTIONS (UK) LTD,A02421,7,2019,
Allerdale Borough Council,10401,Employee Costs,Environmental Protection,Agency Staff Costs,30/10/2019,438125,600.00,G2 RECRUITMENT SOLUTIONS LTD,C00198,7,2019,
Allerdale Borough Council,20300,Third Party Payments,Parks and Grounds Maintenance,Budget-Contract Services,,438126,121375.19,TIVOLI GROUP LTD,A02568,7,2019,
Allerdale Borough Council,20150,Third Party Payments,Festivals & Events,General Partnership Service Fees,30/10/2019,438127,580.00,POD (NORTH WEST) LIMITED,A01977,7,2019,
Allerdale Borough Council,16300,Supplies & Services,Tourism Incentive,Budget-Miscellaneous,30/10/2019,438128,195.00,AL'S KITCHEN LTD,A00187,7,2019,
Allerdale Borough Council,50000,Capital Expenditure,Biodiversity & Green Infrast programmes,Capital Programme,30/10/2019,438129,5500.00,MAYSON BROS LTD,X00132,7,2019,
Allerdale Borough Council,12202,Premises,Corporate Property Maintenance,Electrical Repairs and Service,30/10/2019,438130,74.82,EDMUNDSON ELECTRICAL LTD,A00304,7,2019,
Allerdale Borough Council,12402,Premises,Tenanted Properties,Electricity,30/10/2019,438131,24.06,ENGIE POWER LIMITED ,X00286,7,2019,
Allerdale Borough Council,15501,Supplies & Services,Revenue,Consultants Fees,,438132,310.00,ROSSENDALES LTD,A00964,7,2019,
Allerdale Borough Council,10110,Employee Costs,Commissioning Support Pay Group,Salary Sacrifice,30/10/2019,438133,393.61,TUSKERDIRECT LTD,A02186,7,2019,
Allerdale Borough Council,15804,Supplies & Services,IT Services,Computer Data Lines B.T.,30/10/2019,438134,4015.50,BRITISH TELECOMMUNICATIONS,X00004,7,2019,
Allerdale Borough Council,12402,Premises,Corporate Property Maintenance,Electricity,30/10/2019,438135,36.08,BRITISH GAS ,X00040,7,2019,
Allerdale Borough Council,72104,Holding and Control Accounts,Debtor Control Account,Debtors (Control Account),30/10/2019,438148,416.67,Redacted information - included personal information ,M01741,7,2019,
Allerdale Borough Council,15813,Supplies & Services,Finance and Accounting Pay Group,Software Miscellaneous,,438149,86.40,BARCLAYCARD COMMERCIAL ,X00207,7,2019,
Allerdale Borough Council,15502,Supplies & Services,Legal Services,Land Registry Fees,31/10/2019,438150,37.00,HM LAND REGISTRY ,A00505,7,2019,
Allerdale Borough Council,15502,Supplies & Services,Legal Services,Land Registry Fees,31/10/2019,438151,36.00,HM LAND REGISTRY ,A00505,7,2019,
Allerdale Borough Council,15502,Supplies & Services,Legal Services,Land Registry Fees,31/10/2019,438152,54.00,HM LAND REGISTRY ,A00505,7,2019,
Allerdale Borough Council,15502,Supplies & Services,Legal Services,Land Registry Fees,31/10/2019,438153,30.00,HM LAND REGISTRY ,A00505,7,2019,
Allerdale Borough Council,15502,Supplies & Services,Legal Services,Land Registry Fees,31/10/2019,438154,27.00,HM LAND REGISTRY ,A00505,7,2019,
Allerdale Borough Council,15502,Supplies & Services,Legal Services,Land Registry Fees,31/10/2019,438155,72.00,HM LAND REGISTRY ,A00505,7,2019,
Allerdale Borough Council,15502,Supplies & Services,Legal Services,Land Registry Fees,24/10/2019,438156,69.00,HM LAND REGISTRY ,A00505,7,2019,
Allerdale Borough Council,15502,Supplies & Services,Legal Services,Land Registry Fees,24/10/2019,438157,69.00,HM LAND REGISTRY ,A00505,7,2019,
Allerdale Borough Council,10401,Employee Costs,Waste Contract  Operational Costs,Agency Staff Costs,30/10/2019,438158,589.04,ADECCO RECRUITMENT,A00188,7,2019,
Allerdale Borough Council,15600,Supplies & Services,Corporate Postage and Stationary,Budget-Postal Services,30/10/2019,438159,541.89,UK MAIL GROUP PLC,A02371,7,2019,
Allerdale Borough Council,10401,Employee Costs,Waste Contract  Operational Costs,Agency Staff Costs,30/10/2019,438160,589.04,ADECCO RECRUITMENT,A00188,7,2019,
Allerdale Borough Council,20150,Third Party Payments,Festivals & Events,General Partnership Service Fees,,438161,702.50,TIVOLI GROUP LTD,A02568,7,2019,
Allerdale Borough Council,20105,Third Party Payments,Domestic Waste,Refuse Collection,30/10/2019,438162,95781.79,FCC ENVIRONMENT SERVICES (FOCSA),A00085,7,2019,
Allerdale Borough Council,15601,Supplies & Services,Corporate Postage and Stationary,Postage,30/10/2019,438163,978.72,UK MAIL GROUP PLC,A02371,7,2019,
Allerdale Borough Council,12100,Premises,Other Land & Buildings,Budget-External Maintenance & Decoration,30/10/2019,438164,480.00,Redacted information - included personal information ,C00008,7,2019,
Allerdale Borough Council,12203,Premises,Public Convenience Cleaning,Plumbing and Heating Maintenance,30/10/2019,438165,632.00,Redacted information - included personal information ,C00008,7,2019,
Allerdale Borough Council,20150,Third Party Payments,Festivals & Events,General Partnership Service Fees,30/10/2019,438166,887.00,CUMBRIA COAL LTD,A02710,7,2019,
Allerdale Borough Council,20150,Third Party Payments,Festivals & Events,General Partnership Service Fees,,438167,546.32,PAR SOLUTIONS,A02698,7,2019,
Allerdale Borough Council,21150,Transfer Payments,Maryport Promenade,General Grants,30/10/2019,438168,900.00,Redacted information - included personal information ,M01742,7,2019,
Allerdale Borough Council,16350,Supplies & Services,Homelessness,Miscellaneous Expenses,30/10/2019,438169,350.00,Redacted information - included personal information ,M01743,7,2019,
Allerdale Borough Council,15550,Supplies & Services,Arts Development,General-Service Related Fees,30/10/2019,438170,600.00,Redacted information - included personal information ,M01744,7,2019,
Allerdale Borough Council,21150,Transfer Payments,Shop Front Improvements,General Grants,30/10/2019,438171,900.00,Redacted information - included personal information ,M01745,7,2019,
Allerdale Borough Council,33112,Income,Planning and Development,Planning Fees Income,30/10/2019,438172,234.00,PORTAL PLAN QUEST LTD,M01566,7,2019,
Allerdale Borough Council,33112,Income,Planning and Development,Planning Fees Income,30/10/2019,438173,206.00,PORTAL PLAN QUEST LTD,M01566,7,2019,
Allerdale Borough Council,15101,Supplies & Services,Finance and Accounting Pay Group,Equipment Costs,30/10/2019,438174,146.00,EQUIP4WORK LTD T/A OFFICE FURNITURE ONLINE,A01958,7,2019,
Allerdale Borough Council,15810,Supplies & Services,Waste Contract  Operational Costs,Software Licences,,438175,5091.99,WHITESPACE WORK SOFTWARE,A02678,7,2019,
Allerdale Borough Council,16350,Supplies & Services,Homelessness,Miscellaneous Expenses,30/10/2019,438176,783.98,HOME GROUP LTD,M00999,7,2019,
Allerdale Borough Council,54105,Capital Expenditure,Disabled Facilities Grants,Grants  Private Individuals (Capital),30/10/2019,438177,2370.00,DOLPHIN STAIRLIFTS CUMBRIA,X00107,7,2019,
Allerdale Borough Council,54105,Capital Expenditure,Cluster of Empty Homes,Grants  Private Individuals (Capital),30/10/2019,438178,1686.36,Redacted information - included personal information ,X00294,7,2019,
Allerdale Borough Council,54105,Capital Expenditure,Disabled Facilities Grants,Grants  Private Individuals (Capital),30/10/2019,438179,4243.34,PRISM MEDICAL UK,X00195,7,2019,
Allerdale Borough Council,21101,Transfer Payments,Assistance - Housing Services,Private Individuals,30/10/2019,438180,200.00,ARMSTRONGS REMOVALS,A02536,7,2019,
Allerdale Borough Council,54105,Capital Expenditure,Disabled Facilities Grants,Grants  Private Individuals (Capital),30/10/2019,438181,1985.66,PARTNERSHIP IN PROPERTY MANAGEMENT LTD,X00120,7,2019,
Allerdale Borough Council,54105,Capital Expenditure,Disabled Facilities Grants,Grants  Private Individuals (Capital),30/10/2019,438182,2708.16,PARTNERSHIP IN PROPERTY MANAGEMENT LTD,X00120,7,2019,
Allerdale Borough Council,54105,Capital Expenditure,Disabled Facilities Grants,Grants  Private Individuals (Capital),30/10/2019,438183,3173.18,PARTNERSHIP IN PROPERTY MANAGEMENT LTD,X00120,7,2019,
Allerdale Borough Council,15102,Supplies & Services,Environmental Protection,Equipment Repair & Maintenance,30/10/2019,438184,45.35,Redacted information - included personal information ,M01746,7,2019,
Allerdale Borough Council,16350,Supplies & Services,Homelessness,Miscellaneous Expenses,,438185,352.89,BARCLAYCARD COMMERCIAL,X00207,7,2019,
Allerdale Borough Council,15101,Supplies & Services,Homelessness,Equipment Costs,,438186,99.02,BARCLAYCARD COMMERCIAL,X00207,7,2019,
Allerdale Borough Council,10203,Employee Costs,Director of Resources & PA,Subsistence Allowance,,438187,5.58,BARCLAYCARD COMMERCIAL,X00207,7,2019,
Allerdale Borough Council,15811,Supplies & Services,IT Services,Software Maintenance,01/11/2019,438188,821.67,BARCLAYCARD COMMERCIAL,X00207,7,2019,
Allerdale Borough Council,15811,Supplies & Services,IT Services,Software Maintenance,01/11/2019,438189,1115.86,BARCLAYCARD COMMERCIAL,X00207,7,2019,
